[Event "*** SCC Grand Prix: Titled Tuesday Blitz"]
[Site "Chess.com"]
[Date "2020.06.23"]
[Round "8"]
[White "angryhorse9"]
[Black "budda"]
[Result "1-0"]
[WhiteElo "2450"]
[BlackElo "2328"]
[TimeControl "180+1"]
[EndTime "11:37:15 PDT"]
[Termination "angryhorse9 won by resignation"]

1. e4 {[%clk 0:02:57.4]} 1... c5 {[%clk 0:03:00]} 2. Nf3 {[%clk 0:02:54.3]} 2...
Nc6 {[%clk 0:03:00.2]} 3. Bb5 {[%clk 0:02:53.1]} 3... g6 {[%clk 0:03:00]} 4. O-O
{[%clk 0:02:52.2]} 4... Bg7 {[%clk 0:03:00.5]} 5. Re1 {[%clk 0:02:51.4]} 5...
Nh6 {[%clk 0:03:00.1]} 6. Nc3 {[%clk 0:02:48.4]} 6... O-O {[%clk 0:03:00]} 7. d3
{[%clk 0:02:43.9]} 7... Nd4 {[%clk 0:02:55.1]} 8. Nxd4 {[%clk 0:02:42.8]} 8...
cxd4 {[%clk 0:02:56]} 9. Ne2 {[%clk 0:02:42.5]} 9... e5 {[%clk 0:02:55.3]} 10.
Bc4 {[%clk 0:02:42.3]} 10... Kh8 {[%clk 0:02:54.6]} 11. f4 {[%clk 0:02:34.2]}
11... d6 {[%clk 0:02:54.5]} 12. Rf1 {[%clk 0:02:30.6]} 12... f5 {[%clk
0:02:53.9]} 13. fxe5 {[%clk 0:02:28.1]} 13... dxe5 {[%clk 0:02:53.5]} 14. exf5
{[%clk 0:02:16.4]} 14... gxf5 {[%clk 0:02:51.9]} 15. Ng3 {[%clk 0:02:13.1]}
15... Qh4 {[%clk 0:02:46.6]} 16. Qf3 {[%clk 0:01:59.4]} 16... f4 {[%clk
0:02:33.4]} 17. Ne4 {[%clk 0:01:51.7]} 17... Bg4 {[%clk 0:02:24.9]} 18. Qf2
{[%clk 0:01:49.6]} 18... Qh5 {[%clk 0:02:22.7]} 19. c3 {[%clk 0:01:43.7]} 19...
Bf5 {[%clk 0:02:14.8]} 20. h3 {[%clk 0:01:40.2]} 20... Rg8 {[%clk 0:01:58.7]}
21. Bxg8 {[%clk 0:01:34.4]} 21... Rxg8 {[%clk 0:01:59.6]} 22. cxd4 {[%clk
0:01:32.9]} 22... Bxh3 {[%clk 0:01:35.6]} 23. gxh3 {[%clk 0:01:10.7]} 23... Bf8+
{[%clk 0:01:35.4]} 24. Qg2 {[%clk 0:00:59.3]} 24... f3 {[%clk 0:00:18.4]} 25.
Qxg8+ {[%clk 0:00:55]} 25... Nxg8 {[%clk 0:00:17.3]} 26. Kh2 {[%clk 0:00:48.6]}
26... exd4 {[%clk 0:00:12.5]} 27. Bf4 {[%clk 0:00:48.5]} 27... Ne7 {[%clk
0:00:10.8]} 28. Be5+ {[%clk 0:00:45]} 28... Bg7 {[%clk 0:00:09.7]} 29. Bxg7+
{[%clk 0:00:45.3]} 29... Kxg7 {[%clk 0:00:10.6]} 30. Rg1+ {[%clk 0:00:45.2]}
30... Kf7 {[%clk 0:00:11.1]} 31. Rg5 {[%clk 0:00:44.4]} 31... Qh4 {[%clk
0:00:09.6]} 32. Rg4 {[%clk 0:00:44.8]} 32... Qh6 {[%clk 0:00:09.5]} 33. Rf1
{[%clk 0:00:42.8]} 33... Qe3 {[%clk 0:00:09.8]} 34. Ng5+ {[%clk 0:00:38.8]}
34... Ke8 {[%clk 0:00:06.4]} 35. Rxf3 {[%clk 0:00:39.2]} 35... Qe2+ {[%clk
0:00:06.4]} 36. Rg2 {[%clk 0:00:39.7]} 36... Qe5+ {[%clk 0:00:06.7]} 37. Kh1
{[%clk 0:00:36.8]} 37... Nd5 {[%clk 0:00:06.7]} 38. Ne4 {[%clk 0:00:36.1]} 38...
Ne3 {[%clk 0:00:05.6]} 39. Rg8+ {[%clk 0:00:35.1]} 39... Ke7 {[%clk 0:00:06]}
40. Rff8 {[%clk 0:00:32.9]} 40... Qh5 {[%clk 0:00:05.8]} 41. Kh2 {[%clk
0:00:19.5]} 41... Qe2+ {[%clk 0:00:05.3]} 42. Rf2 {[%clk 0:00:18.4]} 42... Qxd3
{[%clk 0:00:05.2]} 43. Ng5 {[%clk 0:00:18.3]} 43... Nf1+ {[%clk 0:00:04]} 44.
Kg1 {[%clk 0:00:17.5]} 44... Ne3 {[%clk 0:00:04.2]} 45. Kh2 {[%clk 0:00:17.1]}
45... Kd6 {[%clk 0:00:04.5]} 46. Rd8+ {[%clk 0:00:16.7]} 46... Kc7 {[%clk
0:00:04.7]} 47. Rdf8 {[%clk 0:00:16.8]} 47... Qd1 {[%clk 0:00:04.5]} 48. R8f7+
{[%clk 0:00:17.2]} 48... Kb6 {[%clk 0:00:04.5]} 49. R7f6+ {[%clk 0:00:17.3]}
49... Ka5 {[%clk 0:00:05]} 50. R6f4 {[%clk 0:00:17.5]} 50... b5 {[%clk 0:00:05]}
51. Ne6 {[%clk 0:00:16.3]} 51... a6 {[%clk 0:00:04.7]} 52. Nxd4 {[%clk
0:00:16.3]} 52... Qe1 {[%clk 0:00:05.4]} 53. Nf3 {[%clk 0:00:15.3]} 53... Qd1
{[%clk 0:00:04.2]} 54. Nd4 {[%clk 0:00:15]} 54... Nc4 {[%clk 0:00:03.4]} 55.
Nb3+ {[%clk 0:00:15.3]} 55... Kb4 {[%clk 0:00:03.3]} 56. R4f3 {[%clk 0:00:13.9]}
56... Qd6+ {[%clk 0:00:03.1]} 57. Kg1 {[%clk 0:00:13.3]} 57... Ne5 {[%clk
0:00:03.4]} 58. Rf4+ {[%clk 0:00:12.9]} 58... Nc4 {[%clk 0:00:04]} 59. Kg2
{[%clk 0:00:13]} 59... Qd5+ {[%clk 0:00:03.9]} 60. Kg1 {[%clk 0:00:12.9]} 60...
Qd1+ {[%clk 0:00:04.3]} 61. Kh2 {[%clk 0:00:12.8]} 61... Qd6 {[%clk 0:00:04.5]}
62. Nd2 {[%clk 0:00:13.2]} 62... Ka5 {[%clk 0:00:03.9]} 63. Nxc4+ {[%clk
0:00:13.7]} 63... bxc4 {[%clk 0:00:04.8]} 64. Kg1 {[%clk 0:00:14.3]} 64... Qd1+
{[%clk 0:00:04.5]} 65. Kg2 {[%clk 0:00:14.7]} 65... Qd5+ {[%clk 0:00:04.7]} 66.
Kg3 {[%clk 0:00:15.3]} 66... Qd3+ {[%clk 0:00:04.8]} 67. Kg4 {[%clk 0:00:15.3]}
67... Qd6 {[%clk 0:00:05.6]} 68. Rf5+ {[%clk 0:00:15.8]} 68... Kb6 {[%clk
0:00:04.9]} 69. R5f4 {[%clk 0:00:16.7]} 69... Kb7 {[%clk 0:00:04.9]} 70. Rf7+
{[%clk 0:00:16.5]} 70... Kc8 {[%clk 0:00:05.4]} 71. Rf8+ {[%clk 0:00:16.6]}
71... Kd7 {[%clk 0:00:06]} 72. R2f7+ {[%clk 0:00:16]} 72... Kc6 {[%clk
0:00:06.2]} 73. Rf6 {[%clk 0:00:16.4]} 1-0

[Event "*** SCC Grand Prix: Titled Tuesday Blitz"]
[Site "Chess.com"]
[Date "2020.06.23"]
[Round "8"]
[White "Radzio1987"]
[Black "LiemLe"]
[Result "1/2-1/2"]
[WhiteElo "2871"]
[BlackElo "3001"]
[TimeControl "180+1"]
[EndTime "11:37:23 PDT"]
[Termination "Game drawn - insufficient material"]

1. c4 {[%clk 0:02:57.6]} 1... e5 {[%clk 0:02:59.7]} 2. Nc3 {[%clk 0:02:56.9]}
2... Nf6 {[%clk 0:03:00.2]} 3. Nf3 {[%clk 0:02:56.5]} 3... Nc6 {[%clk
0:02:59.8]} 4. a3 {[%clk 0:02:56.9]} 4... d5 {[%clk 0:02:55.8]} 5. cxd5 {[%clk
0:02:56.6]} 5... Nxd5 {[%clk 0:02:56.7]} 6. Qc2 {[%clk 0:02:56.9]} 6... Nxc3
{[%clk 0:02:45]} 7. dxc3 {[%clk 0:02:57.8]} 7... Bd6 {[%clk 0:02:45]} 8. e3
{[%clk 0:02:57.2]} 8... O-O {[%clk 0:02:44.3]} 9. Bd3 {[%clk 0:02:55.5]} 9... f5
{[%clk 0:02:43.7]} 10. e4 {[%clk 0:02:55.1]} 10... f4 {[%clk 0:02:44]} 11. b4
{[%clk 0:02:54.1]} 11... a5 {[%clk 0:02:43.3]} 12. Bb2 {[%clk 0:02:53.1]} 12...
Qf6 {[%clk 0:02:40.5]} 13. Bc4+ {[%clk 0:02:10.8]} 13... Kh8 {[%clk 0:02:39.8]}
14. Rd1 {[%clk 0:02:09.2]} 14... Ne7 {[%clk 0:02:32.5]} 15. h4 {[%clk 0:02:08]}
15... Bg4 {[%clk 0:02:30.2]} 16. Be2 {[%clk 0:02:07.5]} 16... Be6 {[%clk
0:01:50.3]} 17. c4 {[%clk 0:01:55]} 17... axb4 {[%clk 0:01:20.8]} 18. c5 {[%clk
0:01:54.7]} 18... bxa3 {[%clk 0:01:21]} 19. Ba1 {[%clk 0:01:54.2]} 19... Rfc8
{[%clk 0:01:15.4]} 20. O-O {[%clk 0:01:39.7]} 20... h6 {[%clk 0:00:31.9]} 21.
cxd6 {[%clk 0:01:37.5]} 21... cxd6 {[%clk 0:00:32.8]} 22. Qb1 {[%clk 0:01:37.7]}
22... Bg4 {[%clk 0:00:12.7]} 23. Qxb7 {[%clk 0:01:36.8]} 23... Ng6 {[%clk
0:00:13]} 24. Nxe5 {[%clk 0:01:32.2]} 24... dxe5 {[%clk 0:00:11.8]} 25. Bxg4
{[%clk 0:01:31.6]} 25... Rcb8 {[%clk 0:00:12.7]} 26. Qd5 {[%clk 0:01:27.6]}
26... Qxh4 {[%clk 0:00:09.9]} 27. Qe6 {[%clk 0:01:18.4]} 27... Qg5 {[%clk
0:00:07.6]} 28. Rd6 {[%clk 0:01:16.1]} 28... Nh4 {[%clk 0:00:04.1]} 29. Bxe5
{[%clk 0:01:14.9]} 29... Kh7 {[%clk 0:00:02.8]} 30. Rd7 {[%clk 0:00:40.6]} 30...
Re8 {[%clk 0:00:03.2]} 31. Rxg7+ {[%clk 0:00:17.4]} 31... Qxg7 {[%clk
0:00:02.5]} 32. Bxg7 {[%clk 0:00:18.3]} 32... Rxe6 {[%clk 0:00:02.5]} 33. Bxe6
{[%clk 0:00:19.2]} 33... Kxg7 {[%clk 0:00:03.3]} 34. Bd5 {[%clk 0:00:16.4]}
34... Ra5 {[%clk 0:00:03.5]} 35. g3 {[%clk 0:00:12.4]} 35... Nf3+ {[%clk
0:00:02]} 36. Kg2 {[%clk 0:00:12.2]} 36... Nd2 {[%clk 0:00:01.5]} 37. Rd1 {[%clk
0:00:12.3]} 37... a2 {[%clk 0:00:01.5]} 38. Bxa2 {[%clk 0:00:11.2]} 38... Rxa2
{[%clk 0:00:02.4]} 39. gxf4 {[%clk 0:00:10.3]} 39... Nxe4 {[%clk 0:00:02.7]} 40.
Kf3 {[%clk 0:00:10.8]} 40... Nxf2 {[%clk 0:00:02.4]} 41. Rd7+ {[%clk 0:00:10.8]}
41... Kf6 {[%clk 0:00:02.7]} 42. Rd6+ {[%clk 0:00:11.2]} 42... Kg7 {[%clk
0:00:03]} 43. Rd7+ {[%clk 0:00:11.7]} 43... Kf8 {[%clk 0:00:03.5]} 44. Rd6
{[%clk 0:00:11.5]} 44... h5 {[%clk 0:00:03.9]} 45. Rh6 {[%clk 0:00:09.6]} 45...
Nd3 {[%clk 0:00:04.2]} 46. Rxh5 {[%clk 0:00:09.3]} 46... Ra4 {[%clk 0:00:04.9]}
47. Ke3 {[%clk 0:00:09.2]} 47... Nb2 {[%clk 0:00:04.3]} 48. Rb5 {[%clk
0:00:09.1]} 48... Nc4+ {[%clk 0:00:04.1]} 49. Kf3 {[%clk 0:00:09.6]} 49... Nd6
{[%clk 0:00:05]} 50. Rd5 {[%clk 0:00:09.4]} 50... Ke7 {[%clk 0:00:05.4]} 51.
Re5+ {[%clk 0:00:10]} 51... Kf6 {[%clk 0:00:05.7]} 52. Rd5 {[%clk 0:00:10.5]}
52... Nf5 {[%clk 0:00:05.8]} 53. Rd3 {[%clk 0:00:11.1]} 53... Ra1 {[%clk
0:00:05.4]} 54. Rd8 {[%clk 0:00:09.5]} 54... Ra3+ {[%clk 0:00:05.1]} 55. Kf2
{[%clk 0:00:08.7]} 55... Ke6 {[%clk 0:00:04.2]} 56. Re8+ {[%clk 0:00:08.7]}
56... Kf7 {[%clk 0:00:03.9]} 57. Re5 {[%clk 0:00:08.4]} 57... Kg6 {[%clk
0:00:03.9]} 58. Re8 {[%clk 0:00:08.9]} 58... Kh5 {[%clk 0:00:04]} 59. Rg8 {[%clk
0:00:09.2]} 59... Nh6 {[%clk 0:00:04.1]} 60. Rg5+ {[%clk 0:00:09.3]} 60... Kh4
{[%clk 0:00:04.6]} 61. Kg2 {[%clk 0:00:09.7]} 61... Ng4 {[%clk 0:00:04]} 62. Rg7
{[%clk 0:00:09.8]} 62... Rg3+ {[%clk 0:00:03.9]} 63. Kf1 {[%clk 0:00:08.6]}
63... Rf3+ {[%clk 0:00:04.8]} 64. Ke2 {[%clk 0:00:08.7]} 64... Rxf4 {[%clk
0:00:05.1]} 65. Kd2 {[%clk 0:00:09.3]} 65... Kg3 {[%clk 0:00:05.5]} 66. Rh7
{[%clk 0:00:09.8]} 66... Kf3 {[%clk 0:00:05.9]} 67. Re7 {[%clk 0:00:10.3]} 67...
Rd4+ {[%clk 0:00:05.7]} 68. Kc3 {[%clk 0:00:10.7]} 68... Rd8 {[%clk 0:00:06.2]}
69. Re6 {[%clk 0:00:10.4]} 69... Ne3 {[%clk 0:00:06]} 70. Kb4 {[%clk 0:00:09.7]}
70... Ke2 {[%clk 0:00:06]} 71. Kc5 {[%clk 0:00:10]} 71... Rc8+ {[%clk
0:00:05.6]} 72. Kd6 {[%clk 0:00:10]} 72... Kd3 {[%clk 0:00:05.2]} 73. Kd7 {[%clk
0:00:10.3]} 73... Ra8 {[%clk 0:00:05.8]} 74. Rd6+ {[%clk 0:00:10.8]} 74... Ke4
{[%clk 0:00:06.1]} 75. Rh6 {[%clk 0:00:10.9]} 75... Kd4 {[%clk 0:00:06.2]} 76.
Kc7 {[%clk 0:00:10.6]} 76... Ra7+ {[%clk 0:00:06]} 77. Kb6 {[%clk 0:00:10.5]}
77... Rg7 {[%clk 0:00:06.3]} 78. Rh4+ {[%clk 0:00:10.4]} 78... Kc3 {[%clk
0:00:06.2]} 79. Kb5 {[%clk 0:00:10.1]} 79... Re7 {[%clk 0:00:05.4]} 80. Kc5
{[%clk 0:00:10.1]} 80... Re5+ {[%clk 0:00:04.4]} 81. Kd6 {[%clk 0:00:10.2]}
81... Rg5 {[%clk 0:00:05]} 82. Kc6 {[%clk 0:00:10.5]} 82... Nc4 {[%clk
0:00:05.2]} 83. Rh1 {[%clk 0:00:07]} 83... Rg6+ {[%clk 0:00:04.1]} 84. Kd5
{[%clk 0:00:07.3]} 84... Rd6+ {[%clk 0:00:03.9]} 85. Kc5 {[%clk 0:00:07.7]}
85... Rd3 {[%clk 0:00:01.8]} 86. Rc1+ {[%clk 0:00:07.7]} 86... Kd2 {[%clk
0:00:02.4]} 87. Rxc4 {[%clk 0:00:07.8]} 87... Rc3 {[%clk 0:00:02.7]} 88. Rxc3
{[%clk 0:00:07.8]} 88... Kxc3 {[%clk 0:00:03.6]} 1/2-1/2

[Event "*** SCC Grand Prix: Titled Tuesday Blitz"]
[Site "Chess.com"]
[Date "2020.06.23"]
[Round "8"]
[White "Sam_ChessMood"]
[Black "theblitzchamp"]
[Result "1/2-1/2"]
[WhiteElo "2816"]
[BlackElo "2659"]
[TimeControl "180+1"]
[EndTime "11:38:09 PDT"]
[Termination "Game drawn by repetition"]

1. e4 {[%clk 0:03:00.9]} 1... d6 {[%clk 0:02:58.1]} 2. d4 {[%clk 0:02:58.9]}
2... Nf6 {[%clk 0:02:58]} 3. Nc3 {[%clk 0:02:59.1]} 3... e5 {[%clk 0:02:58.3]}
4. Nf3 {[%clk 0:02:58.9]} 4... Nbd7 {[%clk 0:02:57.8]} 5. Bc4 {[%clk 0:02:59]}
5... Be7 {[%clk 0:02:57.5]} 6. O-O {[%clk 0:02:58.7]} 6... O-O {[%clk
0:02:57.2]} 7. Re1 {[%clk 0:02:58.8]} 7... c6 {[%clk 0:02:53.5]} 8. a4 {[%clk
0:02:57.3]} 8... b6 {[%clk 0:02:53.8]} 9. h3 {[%clk 0:02:46.7]} 9... a6 {[%clk
0:02:51.6]} 10. b3 {[%clk 0:02:17.8]} 10... Qc7 {[%clk 0:02:46.2]} 11. Bb2
{[%clk 0:02:13.6]} 11... Bb7 {[%clk 0:02:42.5]} 12. Bd3 {[%clk 0:02:08.8]} 12...
b5 {[%clk 0:02:41.5]} 13. Ne2 {[%clk 0:01:59.9]} 13... Rfe8 {[%clk 0:02:39.2]}
14. Ng3 {[%clk 0:01:59.5]} 14... Bf8 {[%clk 0:02:37.2]} 15. c4 {[%clk
0:01:57.8]} 15... bxa4 {[%clk 0:02:04.5]} 16. Rxa4 {[%clk 0:01:54.7]} 16... c5
{[%clk 0:02:03.3]} 17. d5 {[%clk 0:01:51.4]} 17... g6 {[%clk 0:02:02.9]} 18. Qd2
{[%clk 0:01:41]} 18... Bg7 {[%clk 0:02:01.2]} 19. Bc3 {[%clk 0:01:39.9]} 19...
h6 {[%clk 0:01:53.2]} 20. Ba5 {[%clk 0:01:37.9]} 20... Qc8 {[%clk 0:01:52.7]}
21. Rb1 {[%clk 0:01:19.6]} 21... Rb8 {[%clk 0:01:43.8]} 22. Bc2 {[%clk
0:01:16.3]} 22... Kh7 {[%clk 0:01:33.1]} 23. Ne1 {[%clk 0:01:15.8]} 23... Ng8
{[%clk 0:01:30.7]} 24. Nd3 {[%clk 0:01:13.9]} 24... Bf6 {[%clk 0:01:23.8]} 25.
Qe2 {[%clk 0:01:13.2]} 25... Bd8 {[%clk 0:01:19.9]} 26. Bd2 {[%clk 0:01:04.5]}
26... Nb6 {[%clk 0:01:14.7]} 27. Raa1 {[%clk 0:00:59.8]} 27... Qd7 {[%clk
0:01:13.8]} 28. Be3 {[%clk 0:00:56.4]} 28... Bg5 {[%clk 0:01:08.4]} 29. Bxg5
{[%clk 0:00:49.4]} 29... hxg5 {[%clk 0:01:09.3]} 30. Qe3 {[%clk 0:00:49.8]}
30... Qe7 {[%clk 0:01:06.3]} 31. Bd1 {[%clk 0:00:49.7]} 31... Kg7 {[%clk
0:01:00.4]} 32. Rc1 {[%clk 0:00:40.1]} 32... Nd7 {[%clk 0:00:51.3]} 33. Bg4
{[%clk 0:00:31.9]} 33... Bc8 {[%clk 0:00:41.9]} 34. Rab1 {[%clk 0:00:26.6]}
34... Nb6 {[%clk 0:00:32.9]} 35. Rb2 {[%clk 0:00:11]} 35... Bxg4 {[%clk
0:00:31.7]} 36. hxg4 {[%clk 0:00:11]} 36... Rec8 {[%clk 0:00:30.6]} 37. f3
{[%clk 0:00:08.1]} 37... Rb7 {[%clk 0:00:20.4]} 38. Ra2 {[%clk 0:00:08.4]} 38...
Ra7 {[%clk 0:00:18.8]} 39. b4 {[%clk 0:00:06.8]} 39... Nd7 {[%clk 0:00:15.7]}
40. b5 {[%clk 0:00:05]} 40... Rca8 {[%clk 0:00:16]} 41. Rca1 {[%clk 0:00:04.9]}
41... Nb8 {[%clk 0:00:16.4]} 42. bxa6 {[%clk 0:00:04]} 42... Rxa6 {[%clk
0:00:16.3]} 43. Qd2 {[%clk 0:00:03.7]} 43... Rxa2 {[%clk 0:00:09.4]} 44. Rxa2
{[%clk 0:00:04.6]} 44... Rxa2 {[%clk 0:00:10.1]} 45. Qxa2 {[%clk 0:00:05.2]}
45... Qb7 {[%clk 0:00:11]} 46. Qb2 {[%clk 0:00:04.8]} 46... Qxb2 {[%clk
0:00:10.3]} 47. Nxb2 {[%clk 0:00:05.7]} 47... Ne7 {[%clk 0:00:11.2]} 48. Ne2
{[%clk 0:00:05.9]} 48... Na6 {[%clk 0:00:11.2]} 49. Nc3 {[%clk 0:00:06]} 49...
Nc8 {[%clk 0:00:11.5]} 50. Nb5 {[%clk 0:00:05.3]} 50... Kf8 {[%clk 0:00:11.9]}
51. Kf2 {[%clk 0:00:05.6]} 51... Ke7 {[%clk 0:00:12.6]} 52. Ke3 {[%clk
0:00:05.2]} 52... Nb4 {[%clk 0:00:13.5]} 53. Kd2 {[%clk 0:00:05.2]} 53... Nb6
{[%clk 0:00:12.9]} 54. Kc3 {[%clk 0:00:04.3]} 54... Na2+ {[%clk 0:00:12.9]} 55.
Kd2 {[%clk 0:00:03.6]} 55... Nb4 {[%clk 0:00:13.1]} 56. Kc3 {[%clk 0:00:03.7]}
56... Kd7 {[%clk 0:00:13.3]} 57. Kb3 {[%clk 0:00:03.5]} 57... f6 {[%clk
0:00:13.1]} 58. Nc3 {[%clk 0:00:03.6]} 58... Na6 {[%clk 0:00:12]} 59. Na2 {[%clk
0:00:03.6]} 59... Kc7 {[%clk 0:00:11.6]} 60. Nd3 {[%clk 0:00:03.8]} 60... Kd7
{[%clk 0:00:10.9]} 61. Nc3 {[%clk 0:00:04.4]} 61... Kc7 {[%clk 0:00:11]} 62. Na4
{[%clk 0:00:04.6]} 62... Nxa4 {[%clk 0:00:10.2]} 63. Kxa4 {[%clk 0:00:05.1]}
63... Kb6 {[%clk 0:00:10.8]} 64. g3 {[%clk 0:00:05.6]} 64... Nc7 {[%clk
0:00:11]} 65. f4 {[%clk 0:00:05.9]} 65... gxf4 {[%clk 0:00:10.3]} 66. gxf4
{[%clk 0:00:06.8]} 66... Ne8 {[%clk 0:00:07.4]} 67. f5 {[%clk 0:00:05.7]} 67...
g5 {[%clk 0:00:03.9]} 68. Ne1 {[%clk 0:00:05.5]} 68... Nc7 {[%clk 0:00:03.8]}
69. Nf3 {[%clk 0:00:05.8]} 69... Ne8 {[%clk 0:00:03.8]} 70. Ng1 {[%clk
0:00:05.7]} 70... Nc7 {[%clk 0:00:03.5]} 71. Ne2 {[%clk 0:00:06.1]} 71... Ka6
{[%clk 0:00:02.6]} 72. Ng3 {[%clk 0:00:06.3]} 72... Ne8 {[%clk 0:00:03.5]} 73.
Nh5 {[%clk 0:00:06.7]} 73... Kb6 {[%clk 0:00:04.4]} 74. Ng3 {[%clk 0:00:05.1]}
74... Ka6 {[%clk 0:00:04.7]} 75. Nh1 {[%clk 0:00:05.2]} 75... Kb6 {[%clk
0:00:05.2]} 76. Nf2 {[%clk 0:00:05.7]} 76... Ka6 {[%clk 0:00:06.1]} 77. Nd1
{[%clk 0:00:05.8]} 77... Kb6 {[%clk 0:00:07]} 78. Nc3 {[%clk 0:00:06.2]} 78...
Ka6 {[%clk 0:00:07.6]} 79. Nb5 {[%clk 0:00:05.8]} 79... Kb6 {[%clk 0:00:08.1]}
80. Nc3 {[%clk 0:00:05.9]} 80... Ka6 {[%clk 0:00:08.5]} 81. Kb3 {[%clk 0:00:06]}
81... Kb6 {[%clk 0:00:08.9]} 82. Na4+ {[%clk 0:00:05.8]} 82... Ka6 {[%clk
0:00:08.9]} 83. Nb2 {[%clk 0:00:06.4]} 83... Kb6 {[%clk 0:00:09.2]} 84. Nd3
{[%clk 0:00:05.8]} 84... Ka5 {[%clk 0:00:09.2]} 85. Ka3 {[%clk 0:00:05.8]} 85...
Kb6 {[%clk 0:00:09.3]} 86. Ka4 {[%clk 0:00:05.7]} 86... Ka6 {[%clk 0:00:09.4]}
87. Nc1 {[%clk 0:00:05.9]} 87... Kb6 {[%clk 0:00:09.8]} 88. Nb3 {[%clk
0:00:06.3]} 88... Ka6 {[%clk 0:00:10.2]} 89. Na5 {[%clk 0:00:06.6]} 89... Kb6
{[%clk 0:00:10.5]} 90. Nc6 {[%clk 0:00:06.1]} 90... Ka6 {[%clk 0:00:10.6]} 91.
Nd8 {[%clk 0:00:05.9]} 91... Kb6 {[%clk 0:00:10.7]} 92. Ne6 {[%clk 0:00:06.1]}
92... Ka6 {[%clk 0:00:10.6]} 93. Nf8 {[%clk 0:00:06.5]} 93... Kb6 {[%clk
0:00:10.7]} 94. Nd7+ {[%clk 0:00:06.4]} 94... Ka6 {[%clk 0:00:11]} 95. Nf8
{[%clk 0:00:06.3]} 95... Kb6 {[%clk 0:00:11.2]} 96. Ng6 {[%clk 0:00:06.7]} 96...
Ka6 {[%clk 0:00:11.2]} 97. Ne7 {[%clk 0:00:06.9]} 97... Kb6 {[%clk 0:00:11.5]}
98. Nc6 {[%clk 0:00:06.7]} 98... Ka6 {[%clk 0:00:11.5]} 99. Nb8+ {[%clk
0:00:06.6]} 99... Kb6 {[%clk 0:00:11.6]} 100. Nd7+ {[%clk 0:00:07.1]} 100... Ka6
{[%clk 0:00:12]} 101. Nf8 {[%clk 0:00:06.8]} 1/2-1/2